fUSD/lending_fUSD_20260615
["ID","MTS","AMOUNT","RATE_DAILY","PERIOD"]
[425085796,1781476238000,-192.28,0.00011918,2]
[425085791,1781476238000,-7400.0,0.000119,4]
[425085787,1781476238000,-8722.61939158,0.00011872,2]
[425085788,1781476238000,-15387.73453186,0.00011872,2]
[425085792,1781476238000,-2500.0,0.00011908,2]
[425085798,1781476238000,-173.42014853,0.00011949,2]
[425085789,1781476238000,-6821.9615,0.00011873,2]
[425085794,1781476238000,-24593.29971374,0.00011908,2]
[425085797,1781476238000,-173.05383907,0.00011949,2]
[425085785,1781476238000,-169.64399403,0.00011849,2]
[425085781,1781476238000,-1405717.83401212,0.00011808,2]
[425085783,1781476238000,-6901.7933,0.00011808,2]
[425085784,1781476238000,-197.82737597,0.00011808,2]
[425085782,1781476238000,-2974.367,0.00011808,2]
[425085801,1781476238000,-203.89573405,0.00011979,2]
[425085803,1781476238000,-203.89573405,0.00011979,2]
[425085795,1781476238000,-1270.5445947,0.00011908,2]
[425085809,1781476238000,-500.0,0.00012007,2]
[425085811,1781476238000,-500.0,0.00012007,2]
[425085819,1781476238000,-33287.1579,0.00012009,2]
[425085818,1781476238000,-500.0,0.00012009,2]
[425085812,1781476238000,-1049.9466096,0.00012008,3]
[425085822,1781476238000,-192.28,0.00012202,2]
[425085817,1781476238000,-500.0,0.00012009,2]
[425085814,1781476238000,-500.0,0.00012009,2]
[425085821,1781476238000,-10285.08126988,0.0001205,2]
[425085815,1781476238000,-500.0,0.00012009,2]
[425085816,1781476238000,-500.0,0.00012009,2]
[425085813,1781476238000,-500.0,0.00012009,2]
[425085800,1781476238000,-150.45511458,0.00011973,2]
[425085804,1781476238000,-203.89573405,0.00011979,2]
[425085802,1781476238000,-203.89573405,0.00011979,2]
[425085810,1781476238000,-500.0,0.00012007,2]
[425085808,1781476238000,-500.0,0.00012007,2]
[425085807,1781476238000,-500.0,0.00012007,2]
[425085805,1781476238000,-203.89573405,0.00011979,2]
[425085820,1781476238000,-2000.0,0.00012009,2]
[425085806,1781476238000,-500.0,0.00012007,2]
[425085889,1781476239000,-500.0,0.00013425,2]
[425085890,1781476239000,-579.2933229,0.00013425,2]
[425085897,1781476239000,-500.0,0.00013425,2]
[425085900,1781476239000,-500.0,0.00013425,2]
[425085899,1781476239000,-500.0,0.00013425,2]
[425085881,1781476239000,-500.0,0.00013425,2]
[425085879,1781476239000,-500.0,0.00013425,2]
[425085885,1781476239000,-500.0,0.00013425,2]
[425085875,1781476239000,-500.0,0.00013425,2]
[425085905,1781476239000,-500.0,0.00013425,2]
[425085887,1781476239000,-500.0,0.00013425,2]
[425085869,1781476239000,-500.0,0.00013425,2]
[425085891,1781476239000,-500.0,0.00013425,2]
[425085913,1781476239000,-500.0,0.00013425,2]
[425085903,1781476239000,-240.68764534,0.00013425,2]
[425085895,1781476239000,-500.0,0.00013425,2]
[425085907,1781476239000,-500.0,0.00013425,2]
[425085911,1781476239000,-500.0,0.00013425,2]
[425085909,1781476239000,-500.0,0.00013425,2]
[425085917,1781476239000,-500.0,0.00013425,2]
[425085921,1781476239000,-500.0,0.00013425,2]
[425085919,1781476239000,-500.0,0.00013425,2]
[425085923,1781476239000,-500.0,0.00013425,2]
[425085933,1781476239000,-449.0,0.00013425,2]
[425085925,1781476239000,-596.9016053,0.00013425,2]
[425085927,1781476239000,-500.0,0.00013425,2]
[425085861,1781476239000,-185.11145126,0.00013425,2]
[425085893,1781476239000,-500.0,0.00013425,2]
[425085866,1781476239000,-500.0,0.00013425,2]
[425085833,1781476239000,-31145.697,0.00012872,2]
[425085872,1781476239000,-500.0,0.00013425,2]
[425085823,1781476239000,-24593.29971374,0.0001224,2]
[425085824,1781476239000,-1796.82,0.00012279,2]
[425085827,1781476239000,-192.28,0.00012486,2]
[425085826,1781476239000,-752.14783221,0.00012407,2]
[425085825,1781476239000,-1006.92,0.000123,2]
[425085828,1781476239000,-500.0,0.00012572,2]
[425085832,1781476239000,-23019.13057971,0.00012872,2]
[425085929,1781476239000,-500.0,0.00013425,2]
[425085835,1781476239000,-752.14783221,0.00012905,2]
[425085831,1781476239000,-500.0,0.00012805,2]
[425085834,1781476239000,-24593.29971374,0.00012905,2]
[425085829,1781476239000,-24593.29971374,0.00012573,2]
[425085830,1781476239000,-159.3,0.00012629,2]
[425085837,1781476239000,-168.27,0.00013012,2]
[425085847,1781476239000,-752.14783221,0.00013404,2]
[425085851,1781476239000,-500.0,0.00013425,2]
[425085849,1781476239000,-1270.54459469,0.00013404,2]
[425085853,1781476239000,-500.0,0.00013425,2]
[425085839,1781476239000,-151.42762908,0.00013176,2]
[425085841,1781476239000,-610.05714448,0.00013176,2]
[425085843,1781476239000,-24593.29971374,0.00013237,2]
[425085859,1781476239000,-336.89480713,0.00013425,2]
[425085855,1781476239000,-500.0,0.00013425,2]
[425085845,1781476239000,-250.0,0.00013302,2]
[425085857,1781476239000,-500.0,0.00013425,2]
[425085863,1781476239000,-166.72751158,0.00013425,2]
[425085883,1781476239000,-500.0,0.00013425,2]
[425085877,1781476239000,-500.0,0.00013425,2]
[425085937,1781476239000,-150.0,0.00013425,2]
[425085915,1781476239000,-500.0,0.00013425,2]
[425085931,1781476239000,-385.47242222,0.00013425,2]
[425085998,1781476239000,-500.0,0.00013425,2]
[425086002,1781476239000,-231.40241046,0.00013425,2]
[425086000,1781476239000,-500.0,0.00013425,2]
[425086004,1781476239000,-150.0,0.00013425,2]
[425086008,1781476239000,-449.0,0.00013425,2]
[425086010,1781476239000,-449.0,0.00013425,2]
[425086012,1781476239000,-449.0,0.00013425,2]
[425086024,1781476239000,-500.0,0.00013425,2]
[425086022,1781476239000,-500.0,0.00013425,2]
[425086026,1781476239000,-500.0,0.00013425,2]
[425086028,1781476239000,-150.0,0.00013425,2]
[425086030,1781476239000,-552.49199407,0.00013425,2]
[425086032,1781476239000,-150.0,0.00013425,2]
[425085994,1781476239000,-449.0,0.00013425,2]
[425086014,1781476239000,-464.46218591,0.00013425,2]
[425086020,1781476239000,-500.0,0.00013425,2]
[425086036,1781476239000,-500.0,0.00013425,2]
[425086034,1781476239000,-204.40733021,0.00013425,2]
[425086040,1781476239000,-500.0,0.00013425,2]
[425086042,1781476239000,-500.0,0.00013425,2]
[425086044,1781476239000,-500.0,0.00013425,2]
[425086046,1781476239000,-500.0,0.00013425,2]
[425086038,1781476239000,-500.0,0.00013425,2]
[425086053,1781476239000,-255.86922144,0.00013433,2]
[425086050,1781476239000,-500.0,0.00013425,2]
[425086048,1781476239000,-500.0,0.00013425,2]
[425086051,1781476239000,-400.37540708,0.00013425,2]
[425085935,1781476239000,-449.0,0.00013425,2]
[425086016,1781476239000,-500.0,0.00013425,2]
[425085990,1781476239000,-500.0,0.00013425,2]
[425086018,1781476239000,-551.99405593,0.00013425,2]
[425085992,1781476239000,-523.29570536,0.00013425,2]
[425086006,1781476239000,-449.0,0.00013425,2]
[425085939,1781476239000,-449.0,0.00013425,2]
[425085942,1781476239000,-449.0,0.00013425,2]
[425085946,1781476239000,-449.0,0.00013425,2]
[425085949,1781476239000,-449.0,0.00013425,2]
[425085944,1781476239000,-449.0,0.00013425,2]
[425085951,1781476239000,-150.0,0.00013425,2]
[425085952,1781476239000,-449.0,0.00013425,2]
[425085960,1781476239000,-449.0,0.00013425,2]
[425085958,1781476239000,-200.0,0.00013425,2]
[425085956,1781476239000,-449.0,0.00013425,2]
[425085954,1781476239000,-150.0,0.00013425,2]
[425085965,1781476239000,-449.0,0.00013425,2]
[425085962,1781476239000,-449.0,0.00013425,2]
[425085941,1781476239000,-449.0,0.00013425,2]
[425085996,1781476239000,-500.0,0.00013425,2]
[425085976,1781476239000,-515.7929916,0.00013425,2]
[425085988,1781476239000,-500.0,0.00013425,2]
[425085986,1781476239000,-449.0,0.00013425,2]
[425085982,1781476239000,-150.0,0.00013425,2]
[425085984,1781476239000,-200.0,0.00013425,2]
[425085980,1781476239000,-150.0,0.00013425,2]
[425085978,1781476239000,-449.0,0.00013425,2]
[425085972,1781476239000,-500.0,0.00013425,2]
[425085974,1781476239000,-449.0,0.00013425,2]
[425085969,1781476239000,-500.0,0.00013425,2]
[425085971,1781476239000,-449.0,0.00013425,2]
[425085966,1781476239000,-449.0,0.00013425,2]
[425086118,1781476240000,-500.0,0.00013698,2]
[425086126,1781476240000,-631.01,0.00013698,2]
[425086122,1781476240000,-631.01,0.00013698,2]
[425086127,1781476240000,-631.01,0.00013698,2]
[425086120,1781476240000,-500.0,0.00013698,2]
[425086123,1781476240000,-631.01,0.00013698,2]
[425086119,1781476240000,-500.0,0.00013698,2]
[425086117,1781476240000,-500.0,0.00013698,2]
[425086121,1781476240000,-257.28934228,0.00013698,2]
[425086115,1781476240000,-500.0,0.00013698,2]
[425086131,1781476240000,-631.01,0.00013698,2]
[425086124,1781476240000,-631.01,0.00013698,2]
[425086116,1781476240000,-500.0,0.00013698,2]
[425086133,1781476240000,-631.01,0.00013698,2]
[425086129,1781476240000,-631.01,0.00013698,2]
[425086128,1781476240000,-631.01,0.00013698,2]
[425086136,1781476240000,-500.0,0.00013698,2]
[425086130,1781476240000,-631.01,0.00013698,2]
[425086137,1781476240000,-500.0,0.00013698,2]
[425086134,1781476240000,-500.0,0.00013698,2]
[425086132,1781476240000,-631.01,0.00013698,2]
[425086144,1781476240000,-500.0,0.00013698,2]
[425086151,1781476240000,-500.0,0.00013698,2]
[425086139,1781476240000,-500.0,0.00013698,2]
[425086154,1781476240000,-500.0,0.00013698,2]
[425086150,1781476240000,-500.0,0.00013698,2]
[425086152,1781476240000,-323.22914473,0.00013698,2]
[425086141,1781476240000,-500.0,0.00013698,2]
[425086135,1781476240000,-500.0,0.00013698,2]
[425086125,1781476240000,-631.01,0.00013698,2]
[425086057,1781476240000,-150.0,0.00013488,2]
[425086111,1781476240000,-500.0,0.00013698,2]
[425086142,1781476240000,-500.0,0.00013698,2]
[425086056,1781476240000,-150.0,0.00013488,2]
[425086059,1781476240000,-150.0,0.00013488,2]
[425086064,1781476240000,-150.0,0.00013488,2]
[425086061,1781476240000,-150.0,0.00013488,2]
[425086066,1781476240000,-150.0,0.00013488,2]
[425086073,1781476240000,-2000.0,0.00013523,2]
[425086075,1781476240000,-500.0,0.00013523,2]
[425086070,1781476240000,-150.0,0.00013488,2]
[425086071,1781476240000,-151.0,0.00013513,2]
[425086079,1781476240000,-24593.29971374,0.0001357,2]
[425086068,1781476240000,-150.0,0.00013488,2]
[425086081,1781476240000,-208.280983,0.00013624,2]
[425086114,1781476240000,-500.0,0.00013698,2]
[425086082,1781476240000,-231.099694,0.00013625,2]
[425086086,1781476240000,-1006.92,0.00013667,2]
[425086088,1781476240000,-417.293156,0.00013692,2]
[425086090,1781476240000,-500.0,0.00013697,2]
[425086097,1781476240000,-500.0,0.00013698,2]
[425086092,1781476240000,-500.0,0.00013698,2]
[425086095,1781476240000,-500.0,0.00013698,2]
[425086101,1781476240000,-500.0,0.00013698,2]
[425086113,1781476240000,-500.0,0.00013698,2]
[425086109,1781476240000,-500.0,0.00013698,2]
[425086103,1781476240000,-500.0,0.00013698,2]
[425086099,1781476240000,-500.0,0.00013698,2]
[425086107,1781476240000,-500.0,0.00013698,2]
[425086105,1781476240000,-500.0,0.00013698,2]
[425086084,1781476240000,-1796.82,0.00013643,2]
[425086146,1781476240000,-500.0,0.00013698,2]
[425086196,1781476240000,-500.0,0.00013698,2]
[425086138,1781476240000,-500.0,0.00013698,2]
[425086183,1781476240000,-500.0,0.00013698,2]
[425086186,1781476240000,-500.0,0.00013698,2]
[425086192,1781476240000,-500.0,0.00013698,2]
[425086181,1781476240000,-500.0,0.00013698,2]
[425086185,1781476240000,-500.0,0.00013698,2]
[425086188,1781476240000,-581.8,0.00013698,2]
[425086187,1781476240000,-500.0,0.00013698,2]
[425086190,1781476240000,-500.0,0.00013698,2]
[425086194,1781476240000,-500.0,0.00013698,2]
[425086204,1781476240000,-500.0,0.00013698,2]
[425086205,1781476240000,-500.0,0.00013698,2]
[425086195,1781476240000,-500.0,0.00013698,2]
[425086193,1781476240000,-500.0,0.00013698,2]
[425086189,1781476240000,-500.0,0.00013698,2]
[425086198,1781476240000,-500.0,0.00013698,2]
[425086199,1781476240000,-500.0,0.00013698,2]
[425086202,1781476240000,-500.0,0.00013698,2]
[425086201,1781476240000,-500.0,0.00013698,2]
[425086200,1781476240000,-534.08043595,0.00013698,2]
[425086206,1781476240000,-500.0,0.00013698,2]
[425086208,1781476240000,-503.57081224,0.00013698,2]
[425086209,1781476240000,-500.0,0.00013698,2]
[425086210,1781476240000,-500.0,0.00013698,2]
[425086211,1781476240000,-500.0,0.00013698,2]
[425086207,1781476240000,-500.0,0.00013698,2]
[425086212,1781476240000,-500.0,0.00013698,2]
[425086213,1781476240000,-226.33260723,0.00013698,2]
[425086153,1781476240000,-500.0,0.00013698,2]
[425086203,1781476240000,-500.0,0.00013698,2]
[425086191,1781476240000,-500.0,0.00013698,2]
[425086197,1781476240000,-500.0,0.00013698,2]
[425086180,1781476240000,-500.0,0.00013698,2]
[425086148,1781476240000,-500.0,0.00013698,2]
[425086184,1781476240000,-500.0,0.00013698,2]
[425086165,1781476240000,-500.0,0.00013698,2]
[425086160,1781476240000,-500.0,0.00013698,2]
[425086162,1781476240000,-500.0,0.00013698,2]
[425086155,1781476240000,-500.0,0.00013698,2]
[425086158,1781476240000,-500.0,0.00013698,2]
[425086156,1781476240000,-500.0,0.00013698,2]
[425086157,1781476240000,-500.0,0.00013698,2]
[425086159,1781476240000,-500.0,0.00013698,2]
[425086163,1781476240000,-500.0,0.00013698,2]
[425086166,1781476240000,-500.0,0.00013698,2]
[425086161,1781476240000,-500.0,0.00013698,2]
[425086164,1781476240000,-500.0,0.00013698,2]
[425086140,1781476240000,-500.0,0.00013698,2]
[425086177,1781476240000,-500.0,0.00013698,2]
[425086171,1781476240000,-615.34468037,0.00013698,2]
[425086182,1781476240000,-500.0,0.00013698,2]
[425086178,1781476240000,-500.0,0.00013698,2]
[425086174,1781476240000,-500.0,0.00013698,2]
[425086176,1781476240000,-500.0,0.00013698,2]
[425086179,1781476240000,-500.0,0.00013698,2]
[425086173,1781476240000,-500.0,0.00013698,2]
[425086169,1781476240000,-500.0,0.00013698,2]
[425086170,1781476240000,-500.0,0.00013698,2]
[425086167,1781476240000,-500.0,0.00013698,2]
[425086175,1781476240000,-500.0,0.00013698,2]
[425086172,1781476240000,-500.0,0.00013698,2]
[425086168,1781476240000,-500.0,0.00013698,2]
[425086261,1781476241000,-500.0,0.00013698,2]
[425086253,1781476241000,-500.0,0.00013698,2]
[425086257,1781476241000,-500.0,0.00013698,2]
[425086252,1781476241000,-500.0,0.00013698,2]
[425086245,1781476241000,-503.59381649,0.00013698,2]
[425086249,1781476241000,-500.0,0.00013698,2]
[425086254,1781476241000,-500.0,0.00013698,2]
[425086255,1781476241000,-500.0,0.00013698,2]
[425086250,1781476241000,-500.0,0.00013698,2]
[425086256,1781476241000,-500.0,0.00013698,2]
[425086247,1781476241000,-500.0,0.00013698,2]
[425086260,1781476241000,-500.0,0.00013698,2]
[425086251,1781476241000,-500.0,0.00013698,2]
[425086258,1781476241000,-500.0,0.00013698,2]
[425086266,1781476241000,-999.99,0.00013699,2]
[425086265,1781476241000,-150.99,0.00013699,2]
[425086262,1781476241000,-168.74,0.00013699,2]
[425086264,1781476241000,-9625.6,0.00013699,2]
[425086263,1781476241000,-2500.0,0.00013699,2]
[425086273,1781476241000,-299.99,0.00013699,2]
[425086272,1781476241000,-2097.95,0.00013699,2]
[425086270,1781476241000,-1219.4,0.00013699,2]
[425086268,1781476241000,-9999.99,0.00013699,2]
[425086275,1781476241000,-1583.26,0.00013699,2]
[425086286,1781476241000,-500.0,0.00013699,2]
[425086285,1781476241000,-500.0,0.00013699,2]
[425086287,1781476241000,-500.0,0.00013699,2]
[425086248,1781476241000,-500.0,0.00013698,2]
[425086259,1781476241000,-292.56293859,0.00013698,2]
[425086246,1781476241000,-500.0,0.00013698,2]
[425086218,1781476241000,-570.32,0.00013698,2]
[425086238,1781476241000,-500.0,0.00013698,2]
[425086274,1781476241000,-4999.99,0.00013699,2]
[425086217,1781476241000,-570.32,0.00013698,2]
[425086215,1781476241000,-570.32,0.00013698,2]
[425086216,1781476241000,-570.32,0.00013698,2]
[425086214,1781476241000,-570.32,0.00013698,2]
[425086220,1781476241000,-570.32,0.00013698,2]
[425086230,1781476241000,-500.0,0.00013698,2]
[425086222,1781476241000,-570.32,0.00013698,2]
[425086231,1781476241000,-500.0,0.00013698,2]
[425086219,1781476241000,-570.32,0.00013698,2]
[425086224,1781476241000,-570.32,0.00013698,2]
[425086223,1781476241000,-570.32,0.00013698,2]
[425086221,1781476241000,-570.32,0.00013698,2]
[425086228,1781476241000,-500.0,0.00013698,2]
[425086227,1781476241000,-500.0,0.00013698,2]
[425086229,1781476241000,-500.0,0.00013698,2]
[425086226,1781476241000,-570.32,0.00013698,2]
[425086225,1781476241000,-570.32,0.00013698,2]
[425086232,1781476241000,-500.0,0.00013698,2]
[425086236,1781476241000,-500.0,0.00013698,2]
[425086233,1781476241000,-500.0,0.00013698,2]
[425086244,1781476241000,-500.0,0.00013698,2]
[425086235,1781476241000,-500.0,0.00013698,2]
[425086237,1781476241000,-500.0,0.00013698,2]
[425086234,1781476241000,-500.0,0.00013698,2]
[425086243,1781476241000,-500.0,0.00013698,2]
[425086242,1781476241000,-500.0,0.00013698,2]
[425086240,1781476241000,-500.0,0.00013698,2]
[425086239,1781476241000,-500.0,0.00013698,2]
[425086241,1781476241000,-500.0,0.00013698,2]
[425086276,1781476241000,-4284.26,0.00013699,2]
[425086306,1781476241000,-4885.19442,0.00013814,2]
[425086278,1781476241000,-500.0,0.00013699,2]
[425086322,1781476241000,-500.0,0.00013989,2]
[425086323,1781476241000,-500.0,0.00013989,2]
[425086324,1781476241000,-60000.0,0.0001399,2]
[425086321,1781476241000,-631.01,0.00013989,2]
[425086330,1781476241000,-156.587,0.00014236,2]
[425086325,1781476241000,-150.0,0.00014087,2]
[425086326,1781476241000,-151.0,0.00014229,2]
[425086329,1781476241000,-151.0,0.00014236,2]
[425086318,1781476241000,-2220.89985749,0.00013989,2]
[425086319,1781476241000,-3087.97190107,0.00013989,2]
[425086331,1781476241000,-200.63335723,0.00014236,2]
[425086332,1781476241000,-150.0,0.00014237,2]
[425086334,1781476241000,-161.575551,0.00014267,2]
[425086336,1781476241000,-151.1,0.00014335,2]
[425086333,1781476241000,-150.0,0.00014237,2]
[425086338,1781476241000,-189.678707,0.00014377,2]
[425086339,1781476241000,-150.0,0.00014387,2]
[425086340,1781476241000,-610.05714448,0.00014392,2]
[425086335,1781476241000,-251.606539,0.00014267,2]
[425086337,1781476241000,-184.886322,0.00014339,2]
[425086341,1781476241000,-614.4232435,0.00014399,2]
[425086342,1781476241000,-500.0,0.00014399,2]
[425086343,1781476241000,-500.0,0.00014399,2]
[425086345,1781476241000,-500.0,0.00014399,2]
[425086344,1781476241000,-500.0,0.00014399,2]
[425086347,1781476241000,-752.14783221,0.00014401,2]
[425086349,1781476241000,-1800.0,0.000145,5]
[425086348,1781476241000,-150.0,0.00014487,2]
[425086280,1781476241000,-500.0,0.00013699,2]
[425086320,1781476241000,-500.0,0.00013989,2]
[425086317,1781476241000,-4722.40181848,0.00013989,2]
[425086328,1781476241000,-24593.29971374,0.00014234,2]
[425086346,1781476241000,-9300.0,0.000144,5]
[425086277,1781476241000,-500.0,0.00013699,2]
[425086279,1781476241000,-500.0,0.00013699,2]
[425086284,1781476241000,-500.0,0.00013699,2]
[425086281,1781476241000,-500.0,0.00013699,2]
[425086283,1781476241000,-500.0,0.00013699,2]
[425086282,1781476241000,-500.0,0.00013699,2]
[425086290,1781476241000,-500.0,0.00013699,2]
[425086288,1781476241000,-500.0,0.00013699,2]
[425086291,1781476241000,-500.0,0.00013699,2]
[425086297,1781476241000,-500.0,0.00013699,2]
[425086289,1781476241000,-500.0,0.00013699,2]
[425086293,1781476241000,-500.0,0.00013699,2]
[425086309,1781476241000,-24593.29971374,0.00013902,2]
[425086299,1781476241000,-500.0,0.00013699,2]
[425086303,1781476241000,-1032.9,0.000137,2]
[425086295,1781476241000,-500.0,0.00013699,2]
[425086301,1781476241000,-500.0,0.00013699,2]
[425086307,1781476241000,-150.0,0.00013862,2]
[425086308,1781476241000,-606.60928236,0.0001387,2]
[425086300,1781476241000,-393.27558,0.00013699,2]
[425086316,1781476241000,-1948.32316134,0.00013989,2]
[425086310,1781476241000,-752.14783221,0.00013903,2]
[425086315,1781476241000,-500.0,0.0001393,2]
[425086312,1781476241000,-512.28714422,0.0001393,2]
[425086314,1781476241000,-268.06129672,0.0001393,2]
[425086305,1781476241000,-150.0,0.00013787,2]
[425086304,1781476241000,-610.05714448,0.00013784,2]
[425086311,1781476241000,-500.0,0.0001393,2]
[425086302,1781476241000,-500.0,0.00013699,2]
[425086313,1781476241000,-616.84,0.0001393,2]
[425086353,1781476242000,-24593.29971374,0.00014567,2]
[425086356,1781476242000,-151.0,0.0001463,2]
[425086355,1781476242000,-150.0,0.00014612,2]
[425086350,1781476242000,-500.0,0.00014504,2]
[425086354,1781476242000,-1800.0,0.000146,5]
[425086352,1781476242000,-570.32,0.00014564,2]
[425086351,1781476242000,-12434.52399029,0.00014559,2]
[425086361,1781476242000,-500.0,0.0001474,2]
[425086364,1781476242000,-500.0,0.0001474,2]
[425086358,1781476242000,-150.0,0.00014687,2]
[425086357,1781476242000,-350.0,0.00014675,2]
[425086360,1781476242000,-2686.0,0.000147,2]
[425086362,1781476242000,-500.0,0.0001474,2]
[425086359,1781476242000,-1800.0,0.000147,5]
[425086363,1781476242000,-500.0,0.0001474,2]
[425086365,1781476242000,-1800.0,0.000148,5]
[425086504,1781476243000,-500.0,0.00014988,2]
[425086503,1781476243000,-500.0,0.00014988,2]
[425086508,1781476243000,-500.0,0.00014988,2]
[425086506,1781476243000,-500.0,0.00014988,2]
[425086498,1781476243000,-500.0,0.00014988,2]
[425086500,1781476243000,-500.0,0.00014988,2]
[425086501,1781476243000,-500.0,0.00014988,2]
[425086499,1781476243000,-500.0,0.00014988,2]
[425086497,1781476243000,-500.0,0.00014988,2]
[425086493,1781476243000,-500.0,0.00014988,2]
[425086505,1781476243000,-500.0,0.00014988,2]
[425086502,1781476243000,-500.0,0.00014988,2]
[425086524,1781476243000,-500.0,0.00014988,2]
[425086523,1781476243000,-500.0,0.00014988,2]
[425086492,1781476243000,-500.0,0.00014988,2]
[425086514,1781476243000,-500.0,0.00014988,2]
[425086526,1781476243000,-309.08619992,0.00014988,2]
[425086527,1781476243000,-500.0,0.00014988,2]
[425086520,1781476243000,-500.0,0.00014988,2]
[425086525,1781476243000,-500.0,0.00014988,2]
[425086518,1781476243000,-500.0,0.00014988,2]
[425086512,1781476243000,-500.0,0.00014988,2]
[425086521,1781476243000,-500.0,0.00014988,2]
[425086528,1781476243000,-200780.41024546,0.00014988,2]
[425086529,1781476243000,-274612.1806882,0.00014989,2]
[425086510,1781476243000,-500.0,0.00014988,2]
[425086488,1781476243000,-500.0,0.00014988,2]
[425086484,1781476243000,-500.0,0.00014988,2]
[425086491,1781476243000,-500.0,0.00014988,2]
[425086532,1781476243000,-151.0,0.00014989,2]
[425086470,1781476243000,-500.0,0.00014988,2]
[425086471,1781476243000,-500.0,0.00014988,2]
[425086465,1781476243000,-500.0,0.00014988,2]
[425086464,1781476243000,-500.0,0.00014988,2]
[425086466,1781476243000,-500.0,0.00014988,2]
[425086468,1781476243000,-500.0,0.00014988,2]
[425086469,1781476243000,-500.0,0.00014988,2]
[425086467,1781476243000,-500.0,0.00014988,2]
[425086476,1781476243000,-500.0,0.00014988,2]
[425086472,1781476243000,-500.0,0.00014988,2]
[425086474,1781476243000,-500.0,0.00014988,2]
[425086477,1781476243000,-500.0,0.00014988,2]
[425086478,1781476243000,-500.0,0.00014988,2]
[425086473,1781476243000,-500.0,0.00014988,2]
[425086475,1781476243000,-500.0,0.00014988,2]
[425086479,1781476243000,-500.0,0.00014988,2]
[425086480,1781476243000,-500.0,0.00014988,2]
[425086481,1781476243000,-500.0,0.00014988,2]
[425086483,1781476243000,-500.0,0.00014988,2]
[425086482,1781476243000,-500.0,0.00014988,2]
[425086485,1781476243000,-500.0,0.00014988,2]
[425086486,1781476243000,-500.0,0.00014988,2]
[425086495,1781476243000,-500.0,0.00014988,2]
[425086490,1781476243000,-500.0,0.00014988,2]
[425086496,1781476243000,-500.0,0.00014988,2]
[425086494,1781476243000,-500.0,0.00014988,2]
[425086487,1781476243000,-500.0,0.00014988,2]
[425086530,1781476243000,-151.0,0.00014989,2]
[425086516,1781476243000,-500.0,0.00014988,2]
[425086531,1781476243000,-631.01,0.00014989,2]
[425086564,1781476243000,-570.32,0.00014999,2]
[425086576,1781476243000,-500.0,0.00014999,2]
[425086567,1781476243000,-500.0,0.00014999,2]
[425086568,1781476243000,-500.0,0.00014999,2]
[425086572,1781476243000,-500.0,0.00014999,2]
[425086571,1781476243000,-500.0,0.00014999,2]
[425086573,1781476243000,-500.0,0.00014999,2]
[425086577,1781476243000,-500.0,0.00014999,2]
[425086574,1781476243000,-500.0,0.00014999,2]
[425086569,1781476243000,-500.0,0.00014999,2]
[425086570,1781476243000,-500.0,0.00014999,2]